bitfinex-derivatives/quotes_SOLF0:USTF0_20241224
["timestamp","ask_amount","ask_price","bid_price","bid_amount"]
[1735021574961,8.40218714,191.46,191.43,2.6153]
[1735021575433,11.01718714,191.46,191.4,5.6757]
[1735021576554,8.40218714,191.44,191.4,5.6757]
[1735021576760,8.40218714,191.42,191.37,2.6161]
[1735021576961,8.40218714,191.4,191.34,1.5135]
[1735021577159,8.40218714,191.4,191.33,8.40218714]
[1735021578660,8.40218714,191.4,191.35,2.6163]
[1735021579258,3.06,191.47,191.38,2.616]
[1735021579458,8.40218714,191.43,191.38,2.616]
[1735021579660,8.40218714,191.43,191.37,8.40218714]
[1735021579858,8.40218714,191.45,191.37,11.46218714]
[1735021580662,11.01728714,191.45,191.39,2.6158]
[1735021581567,11.01728714,191.45,191.4,2.6157]
[1735021582062,4.91133377,191.5,191.41,8.40218714]
[1735021582264,8.40218714,191.48,191.41,8.40218714]
[1735021582463,3.32863377,191.5,191.43,8.40218714]
[1735021582663,8.40218714,191.51,191.43,8.40218714]
[1735021583066,8.40218714,191.51,191.45,8.40218714]
[1735021584584,8.40218714,191.51,191.47,2.6147]
[1735021587776,8.40218714,191.53,191.45,8.40218714]
[1735021588072,8.40218714,191.53,191.48,2.6146]
[1735021588284,8.40218714,191.53,191.47,8.40218714]
[1735021588668,8.40218714,191.53,191.47,11.46218714]
[1735021589174,8.40218714,191.53,191.48,2.6146]
[1735021589372,8.40218714,191.5,191.48,2.6146]
[1735021589571,8.40218714,191.5,191.47,3.06]
[1735021589777,8.40218714,191.5,191.43,11.46218714]
[1735021591478,1.5722,191.56,191.45,8.40218714]
[1735021591681,8.40218714,191.52,191.45,8.40218714]
[1735021592080,8.40218714,191.54,191.49,2.6144]
[1735021593086,8.40218714,191.52,191.45,8.40218714]
[1735021593284,8.40218714,191.52,191.47,2.6146]
[1735021593784,8.40218714,191.52,191.48,2.6146]
[1735021594797,8.40218714,191.49,191.35,58.08257866]
[1735021594992,8.40218714,191.42,191.35,66.4847658]
[1735021595285,8.40218714,191.45,191.38,2.616]
[1735021595583,2.615,191.46,191.37,8.40218714]
[1735021595787,8.40218714,191.45,191.37,8.40218714]
[1735021596081,8.40218714,191.45,191.37,11.01828714]
[1735021596283,11.01728714,191.45,191.37,11.01828714]
[1735021597080,11.01728714,191.45,191.38,2.6161]
[1735021597481,11.01728714,191.45,191.37,8.40218714]
[1735021598186,8.40218714,191.44,191.37,8.40218714]
[1735021598586,8.40218714,191.44,191.37,11.01838714]
[1735021602079,11.01748714,191.44,191.37,11.01838714]
[1735021603487,11.01748714,191.44,191.37,8.40218714]
[1735021605189,2.6154,191.43,191.35,2.6164]
[1735021605401,2.6154,191.43,191.36,8.40218714]
[1735021605589,2.6154,191.43,191.36,11.01848714]
[1735021606190,2.6154,191.43,191.38,8.40218714]
[1735021607697,2.6154,191.43,191.36,11.01848714]
[1735021609590,2.6154,191.43,191.36,8.40218714]
[1735021609791,2.6154,191.43,191.37,2.6161]
[1735021618405,2.6157,191.41,191.36,8.40218714]
[1735021619118,8.40218714,191.42,191.3,62.71485868]
[1735021619312,11.01798714,191.4,191.35,8.40218714]
[1735021622313,11.01798714,191.4,191.35,11.01868714]
[1735021624211,6.5893,191.48,191.35,11.01868714]
[1735021624212,6.5893,191.48,191.36,2.6163]
[1735021624411,1.5213,191.48,191.32,3.56]
[1735021624618,8.40218714,191.49,191.43,8.40218714]
[1735021625118,11.01688714,191.49,191.44,2.6153]
[1735021625416,11.01688714,191.49,191.43,8.40218714]
[1735021625617,11.01688714,191.49,191.43,11.01748714]
[1735021625920,11.01688714,191.49,191.43,8.40218714]
[1735021626114,3.0757,191.53,191.43,8.40218714]
[1735021626419,8.40218714,191.51,191.45,2.615]
[1735021626706,8.40218714,191.51,191.46,2.615]
[1735021628009,11.01648714,191.51,191.46,2.615]
[1735021628525,11.01648714,191.51,191.4,4.7321]
[1735021628715,11.01648714,191.51,191.45,8.40218714]
[1735021629018,2.6145,191.5,191.45,8.40218714]
[1735021631916,2.6146,191.49,191.44,11.01728714]
[1735021633117,8.40218714,191.47,191.41,2.6155]
[1735021633322,8.40218714,191.45,191.38,11.86218714]
[1735021634130,8.40218714,191.45,191.38,11.01808714]
[1735021635562,2.6153,191.44,191.38,11.01808714]
[1735021636029,2.6153,191.44,191.39,2.6159]
[1735021636324,8.40218714,191.45,191.38,8.40218714]
[1735021636523,2.6154,191.43,191.38,8.40218714]
[1735021636722,2.6154,191.43,191.38,11.01818714]
[1735021640427,8.40218714,191.45,191.38,8.40218714]
[1735021641025,8.40218714,191.47,191.4,8.40218714]
[1735021642533,11.01708714,191.47,191.42,2.6155]
[1735021651140,2.615,191.46,191.42,2.6155]
[1735021656744,11.01738714,191.45,191.39,2.6158]
[1735021659342,8.40218714,191.45,191.39,2.6158]
[1735021659543,2.6153,191.44,191.39,2.6158]
[1735021665149,2.6153,191.44,191.39,8.40218714]
[1735021665357,2.6151,191.45,191.39,8.40218714]
[1735021666481,2.6151,191.45,191.41,2.6156]
[1735021668962,8.40218714,191.49,191.43,8.40218714]
[1735021670557,8.40218714,191.49,191.45,2.6151]
[1735021672660,2.6145,191.5,191.45,2.6151]
[1735021674663,8.40218714,191.51,191.45,8.40218714]
[1735021674965,8.40218714,191.53,191.45,8.40218714]
[1735021675263,11.01618714,191.53,191.48,2.6147]
[1735021675463,97.353079,191.55,191.47,8.40218714]
[1735021675758,97.353079,191.55,191.43,4.7792]
[1735021675759,105.75526614,191.55,191.49,8.40218714]
[1735021675953,105.75526614,191.55,191.5,2.6143]
[1735021678468,105.75526614,191.55,191.49,8.40218714]
[1735021678840,105.75526614,191.55,191.51,2.6143]
[1735021679258,105.75526614,191.55,191.49,8.40218714]
[1735021679463,105.75526614,191.55,191.5,2.6144]
[1735021681172,105.75526614,191.55,191.43,4.7792]
[1735021681362,2.614,191.53,191.48,2.6147]
[1735021681561,8.40218714,191.53,191.44,3.38]
[1735021681754,8.40218714,191.51,191.44,8.40218714]
[1735021681953,2.6145,191.5,191.44,11.01738714]
[1735021682154,8.40218714,191.49,191.44,11.01738714]
[1735021684062,11.01648714,191.51,191.46,11.01718714]
[1735021686867,8.40218714,191.51,191.47,2.6148]
[1735021687468,11.01638714,191.53,191.48,2.6147]
[1735021688063,97.353079,191.55,191.48,8.40218714]
[1735021688263,1.565,191.58,191.5,8.40218714]
[1735021688464,1.565,191.58,191.43,8.1592]
[1735021688465,1.565,191.58,191.52,8.40218714]
[1735021688858,2.6134,191.58,191.52,11.01628714]
[1735021689066,1.76878716,191.6,191.54,8.40218714]
[1735021689371,8.40218714,191.59,191.53,2.614]
[1735021690172,2.6134,191.58,191.53,2.614]
[1735021690365,8.40218714,191.57,191.51,2.6142]
[1735021690563,8.40218714,191.55,191.51,2.6142]
[1735021692573,2.6136,191.56,191.51,2.6142]
[1735021709283,8.40218714,191.57,191.5,8.40218714]
[1735021710177,8.40218714,191.57,191.52,2.6142]
[1735021710687,11.01578714,191.57,191.52,2.6142]
[1735021713597,11.01578714,191.57,191.53,2.614]
[1735021715586,8.40218714,191.58,191.53,2.6139]
[1735021716290,11.01558714,191.58,191.53,2.6139]
[1735021717495,2.6134,191.58,191.53,2.6139]
[1735021717776,11.01558714,191.58,191.53,2.6139]
[1735021719092,8.40218714,191.58,191.5,8.40218714]
[1735021719296,8.40218714,191.58,191.54,2.6139]
[1735021720695,2.6133,191.59,191.54,2.6139]
[1735021720894,11.01548714,191.59,191.54,2.6139]
[1735021722197,2.6133,191.59,191.54,2.6139]
[1735021722398,11.01548714,191.59,191.54,2.6139]
[1735021722692,1.76878716,191.6,191.54,8.40218714]
[1735021722905,1.76878716,191.6,191.56,8.40218714]
[1735021724391,1.76878716,191.6,191.58,2.6133]
[1735021726398,1.76878716,191.6,191.57,2.6135]
[1735021726593,1.76878716,191.6,191.55,3.18]
[1735021726792,8.40218714,191.57,191.51,1.5608]
[1735021727093,8.40218714,191.55,191.47,70.64762678]
[1735021727199,8.40218714,191.55,191.48,8.40218714]
[1735021728497,11.01598714,191.55,191.49,2.6145]
[1735021729099,11.01598714,191.55,191.49,11.01668714]
[1735021729594,2.6138,191.55,191.49,11.01668714]
[1735021729795,1.58,191.59,191.49,11.01668714]
[1735021729796,2.6136,191.56,191.51,2.6142]
[1735021730021,8.40218714,191.57,191.5,8.40218714]
[1735021731400,2.6138,191.55,191.5,8.40218714]
[1735021731795,11.01598714,191.55,191.5,8.40218714]
[1735021733505,11.01598714,191.55,191.5,11.01658714]
[1735021735698,11.01568714,191.57,191.52,2.6141]
[1735021742104,11.01568714,191.57,191.51,2.6143]
[1735021746902,11.01618714,191.53,191.48,2.6146]
[1735021747108,8.40218714,191.51,191.43,13.12188714]
[1735021747408,11.01678714,191.49,191.44,2.6152]
[1735021747999,11.01678714,191.49,191.43,2.6154]
[1735021749200,11.01678714,191.49,191.44,2.6152]
[1735021751021,8.40218714,191.47,191.4,3.12]
[1735021751311,8.40218714,191.47,191.4,8.40218714]
[1735021751909,8.40218714,191.47,191.41,2.6156]
[1735021752216,8.40218714,191.47,191.4,8.40218714]
[1735021753411,8.40218714,191.47,191.43,2.6154]
[1735021754515,8.40218714,191.47,191.44,2.6152]
[1735021757626,8.40218714,191.49,191.45,2.6151]
[1735021764817,3.12,191.54,191.44,8.40218714]
[1735021765016,8.40218714,191.53,191.46,8.40218714]
[1735021766525,8.40218714,191.53,191.5,2.6144]
[1735021767126,11.01598714,191.55,191.5,2.6144]
[1735021767531,11.01598714,191.55,191.48,8.40218714]
[1735021767532,1.6118,191.56,191.51,2.6143]
[1735021767827,8.40218714,191.57,191.5,8.40218714]
[1735021768427,8.40218714,191.59,191.54,2.6139]
[1735021782441,2.6132,191.6,191.49,4.653]
[1735021782640,38.81591916,191.66,191.58,8.40218714]
[1735021782842,30.41373202,191.66,191.58,8.40218714]
[1735021783145,41.42821916,191.66,191.61,2.6129]
[1735021783350,12.62128714,191.66,191.61,2.6129]
[1735021784249,8.40218714,191.66,191.61,2.6129]
[1735021785746,2.612,191.68,191.6,8.40218714]
[1735021785949,8.40218714,191.67,191.6,8.40218714]
[1735021786347,8.40218714,191.67,191.62,2.6128]
[1735021786749,8.40218714,191.67,191.6,8.40218714]
[1735021787453,3.1,191.7,191.62,8.40218714]
[1735021787755,8.40218714,191.7,191.64,8.40218714]
[1735021787944,8.40218714,191.72,191.64,8.40218714]
[1735021789346,8.40218714,191.72,191.68,2.612]
[1735021789548,1.76757606,191.75,191.66,8.40218714]
[1735021789753,8.40218714,191.73,191.66,8.40218714]
[1735021790649,8.40218714,191.73,191.69,2.6118]
[1735021791553,2.6112,191.74,191.69,2.6118]
[1735021791755,8.40218714,191.73,191.69,2.6118]
[1735021796247,11.01338714,191.74,191.69,2.6118]
[1735021797854,8.40218714,191.74,191.69,2.6118]
[1735021799972,4.37857606,191.75,191.65,3.1]
[1735021799973,2.6117,191.71,191.65,14.11448714]
[1735021801166,8.40218714,191.72,191.65,14.11448714]
[1735021801457,8.40218714,191.7,191.65,3.1]
[1735021801660,8.40218714,191.7,191.63,8.40218714]
[1735021802558,11.01388714,191.7,191.65,2.6124]
[1735021804954,1.76757606,191.75,191.61,3.1]
[1735021805181,10.1697632,191.75,191.69,2.6118]
[1735021805656,8.40218714,191.73,191.64,3.1958]
[1735021805863,8.40218714,191.73,191.68,2.612]
[1735021807461,11.01348714,191.73,191.68,2.612]
[1735021808274,2.6113,191.73,191.68,2.612]
[1735021810365,8.40218714,191.74,191.69,2.6118]
[1735021812272,8.40218714,191.74,191.7,2.6117]
[1735021813772,8.40218714,191.72,191.64,11.59798714]
[1735021813973,8.40218714,191.7,191.64,11.59798714]
[1735021814682,2.6116,191.71,191.64,11.59798714]
[1735021815575,2.6116,191.71,191.66,2.6122]
[1735021821179,11.01368714,191.72,191.66,2.6122]
[1735021822291,11.01368714,191.72,191.67,2.6121]
[1735021822887,8.40218714,191.74,191.66,8.40218714]
[1735021823088,8.40218714,191.74,191.68,8.40218714]
[1735021824486,8.40218714,191.74,191.7,2.6117]
[1735021828790,1.76757606,191.75,191.72,2.6113]
[1735021828991,1.76757606,191.75,191.7,8.40218714]
[1735021829492,1.76757606,191.75,191.74,2.6112]
[1735021830685,5.7212,191.81,191.74,8.40218714]
[1735021830888,14.12338714,191.81,191.74,8.40218714]
[1735021831997,11.01268714,191.79,191.72,8.40218714]
[1735021833490,11.01268714,191.79,191.74,2.6112]
[1735021840902,11.01298714,191.77,191.72,2.6114]
[1735021841101,8.40218714,191.75,191.71,3.08]
[1735021841303,8.40218714,191.73,191.65,9.88908714]
[1735021841612,8.40218714,191.71,191.65,12.96908714]
[1735021843406,8.40218714,191.71,191.68,2.6119]
[1735021843603,8.40218714,191.71,191.65,12.96908714]
[1735021844402,8.40218714,191.71,191.69,2.6118]
[1735021844602,11.01348714,191.73,191.69,2.6118]
[1735021845503,8.40218714,191.73,191.71,2.6115]
[1735021851613,2.6109,191.76,191.71,2.6115]
[1735021851806,8.40218714,191.74,191.71,2.6115]
[1735021854410,8.40218714,191.74,191.67,8.40218714]
[1735021854616,8.40218714,191.76,191.69,8.40218714]
[1735021855115,8.40218714,191.78,191.75,2.611]
[1735021855584,8.40218714,191.78,191.71,8.40218714]
[1735021855712,8.40218714,191.78,191.71,9.89268714]
[1735021856009,10.16913958,191.8,191.76,2.6109]
[1735021858014,1.76695244,191.8,191.76,2.6109]
[1735021858213,10.16913958,191.8,191.76,2.6109]
[1735021858409,1.5357,191.86,191.72,1.5676]
[1735021858616,1.5357,191.86,191.75,3.08]
[1735021858617,8.40218714,191.85,191.75,3.08]
[1735021858914,8.40218714,191.85,191.78,8.40218714]
[1735021859120,8.40218714,191.85,191.75,3.08]
[1735021859412,8.40218714,191.85,191.77,8.40218714]
[1735021860326,8.40218714,191.85,191.81,2.6102]
[1735021860511,29.00934365,191.9,191.79,8.40218714]
[1735021860711,8.40218714,191.88,191.81,8.40218714]
[1735021861114,8.40218714,191.88,191.82,2.61]
[1735021861415,8.40218714,191.86,191.78,8.40218714]
[1735021861715,8.40218714,191.84,191.78,8.40218714]
[1735021862317,8.40218714,191.84,191.75,3.08]
[1735021862509,8.40218714,191.84,191.76,8.40218714]
[1735021862709,8.40218714,191.84,191.8,2.6103]
[1735021864513,8.40218714,191.84,191.81,2.6102]
[1735021865423,8.40218714,191.86,191.81,2.6102]
[1735021867227,8.40218714,191.86,191.82,2.6101]
[1735021867418,8.40218714,191.86,191.78,8.40218714]
[1735021867725,8.40218714,191.86,191.79,2.6104]
[1735021868610,8.40218714,191.86,191.78,8.40218714]
[1735021868720,8.40218714,191.86,191.8,2.6103]
[1735021870422,8.40218714,191.86,191.81,2.6102]
[1735021874767,8.40218714,191.88,191.83,2.6099]
[1735021875917,8.40218714,191.88,191.75,3.08]
[1735021876118,8.40218714,191.86,191.75,3.08]
[1735021876323,8.40218714,191.84,191.78,8.40218714]
[1735021876522,8.40218714,191.84,191.79,2.6104]
[1735021876935,8.40218714,191.84,191.78,8.40218714]
[1735021878325,8.40218714,191.84,191.75,3.08]
[1735021878525,8.40218714,191.84,191.76,8.40218714]
[1735021879421,8.40218714,191.84,191.79,2.6104]
[1735021879622,3.08,191.91,191.78,8.40218714]
[1735021879826,8.40218714,191.85,191.78,8.40218714]
[1735021880022,8.40218714,191.85,191.81,2.6101]
[1735021881025,8.40218714,191.85,191.8,2.6103]
[1735021881942,8.40218714,191.83,191.78,2.6106]
[1735021882317,8.40218714,191.81,191.75,3.08]
[1735021882618,8.40218714,191.81,191.72,1.5676]
[1735021882619,8.40218714,191.81,191.72,4.6476]
[1735021883029,8.40218714,191.81,191.73,8.40218714]
[1735021883331,8.40218714,191.81,191.76,2.6109]
[1735021884431,4.5815,191.85,191.72,4.6476]
[1735021884432,3.08,191.85,191.77,2.6107]
[1735021884628,8.40218714,191.83,191.75,8.40218714]
[1735021885027,8.40218714,191.83,191.72,4.6476]
[1735021885228,8.40218714,191.83,191.76,8.40218714]
[1735021885432,8.40218714,191.83,191.78,2.6106]
[1735021885633,8.40218714,191.83,191.72,4.6476]
[1735021885927,8.40218714,191.83,191.75,8.40218714]
[1735021886431,8.40218714,191.83,191.76,2.6108]
[1735021887434,8.40218714,191.83,191.75,8.40218714]
[1735021887631,8.40218714,191.83,191.77,2.6106]
[1735021889136,8.40218714,191.83,191.78,2.6106]
[1735021892235,8.40218714,191.83,191.79,2.6105]
[1735021893336,8.40218714,191.83,191.77,2.6107]
[1735021893533,8.40218714,191.81,191.77,2.6107]
[1735021894435,8.40218714,191.79,191.74,2.6111]
[1735021895335,3.08,191.82,191.72,1.5676]
[1735021895336,3.08,191.82,191.73,8.40218714]
[1735021895534,8.40218714,191.81,191.75,8.40218714]
[1735021896534,8.40218714,191.81,191.77,2.6107]
[1735021897938,8.40218714,191.79,191.73,2.6112]
[1735021898139,8.40218714,191.79,191.72,1.5676]
[1735021898542,8.40218714,191.77,191.71,11.39798714]
[1735021898839,8.40218714,191.77,191.71,9.89268714]
[1735021899341,8.40218714,191.77,191.67,1.5371]
[1735021899533,8.40218714,191.73,191.67,1.5371]
[1735021900538,8.40218714,191.73,191.69,2.6117]
[1735021901140,11.01348714,191.73,191.67,2.612]
[1735021901839,11.01388714,191.71,191.65,2.6123]
[1735021902743,11.01388714,191.71,191.64,13.08698714]
[1735021902944,11.01388714,191.71,191.66,2.6122]
[1735021903942,8.40218714,191.71,191.68,2.6119]
[1735021904249,11.01358714,191.73,191.68,2.6119]
[1735021905542,2.6115,191.72,191.66,11.01428714]
[1735021906441,2.6115,191.72,191.67,2.6121]
[1735021907139,2.611,191.75,191.69,2.6117]
[1735021907341,8.40218714,191.74,191.69,2.6117]
[1735021908147,8.40218714,191.74,191.68,8.40218714]
[1735021908344,2.6114,191.73,191.68,2.612]
[1735021911548,2.6115,191.72,191.67,2.612]
[1735021912549,2.6115,191.72,191.68,2.612]
[1735021913152,8.40218714,191.74,191.64,4.6848]
[1735021913350,2.6116,191.71,191.66,2.6121]
[1735021915057,8.40218714,191.72,191.65,8.40218714]
[1735021915352,8.40218714,191.72,191.68,2.6119]
[1735021915557,8.40218714,191.74,191.67,8.40218714]
[1735021915879,11.01338714,191.74,191.69,2.6118]
[1735021916561,2.6112,191.74,191.69,2.6118]
[1735021916764,11.01338714,191.74,191.69,2.6118]
[1735021918358,8.40218714,191.74,191.7,2.6117]
[1735021921359,11.01338714,191.74,191.7,2.6117]
[1735021922756,11.01338714,191.74,191.66,8.40218714]
[1735021922961,11.01338714,191.74,191.68,2.6119]
[1735021923666,8.40218714,191.72,191.68,2.6119]
[1735021924562,8.40218714,191.72,191.64,13.08698714]
[1735021924766,11.01358714,191.72,191.67,2.6121]
[1735021924965,8.40218714,191.72,191.67,2.6121]
[1735021926070,3.0711,191.77,191.67,2.6121]
[1735021926270,8.40218714,191.74,191.68,8.40218714]
[1735021927464,8.40218714,191.74,191.7,2.6117]
[1735021929873,8.40218714,191.72,191.68,2.612]
[1735021930070,3.0711,191.77,191.64,1.5848]
[1735021930272,8.40218714,191.7,191.61,3.2081]
[1735021930467,8.40218714,191.68,191.64,2.6124]
[1735021931273,2.6117,191.7,191.64,2.6124]
[1735021931573,11.01388714,191.7,191.64,2.6124]
[1735021933174,8.40218714,191.68,191.62,2.6127]
[1735021933676,8.40218714,191.64,191.59,2.6131]
[1735021933972,1.487,191.71,191.57,70.57612242]
[1735021933973,8.40218714,191.62,191.57,70.57612242]
[1735021934171,11.01498714,191.62,191.57,73.18952242]
[1735021934973,11.01498714,191.62,191.57,2.6134]
[1735021935873,2.6131,191.61,191.55,2.6137]
[1735021936176,2.6131,191.61,191.55,11.01588714]
[1735021938575,8.40218714,191.62,191.55,8.40218714]
[1735021938778,11.01498714,191.62,191.56,2.6135]
[1735021942576,8.40218714,191.64,191.58,2.6133]
[1735021943583,2.6127,191.63,191.58,2.6133]
[1735021945096,3.0597,191.7,191.61,8.40218714]
[1735021945384,9.88918714,191.71,191.63,8.40218714]
[1735021945981,12.50088714,191.71,191.63,8.40218714]
[1735021946182,11.01388714,191.71,191.63,8.40218714]
[1735021946579,5.6914,191.73,191.65,8.40218714]
[1735021946781,8.40218714,191.72,191.65,8.40218714]
[1735021947122,8.40218714,191.7,191.63,8.40218714]
[1735021948181,8.40218714,191.7,191.64,2.6125]
[1735021948884,8.40218714,191.68,191.6,1.6251]
[1735021949082,8.40218714,191.68,191.62,2.6128]
[1735021949381,8.40218714,191.68,191.6,10.02728714]
[1735021949985,11.01418714,191.68,191.63,2.6125]
[1735021952383,8.40218714,191.68,191.63,2.6125]
[1735021952582,8.40218714,191.68,191.6,10.02728714]
[1735021953106,8.40218714,191.68,191.57,4.6218]
[1735021953107,8.40218714,191.64,191.59,2.6131]
[1735021953283,8.40218714,191.62,191.57,1.5418]
[1735021953888,8.40218714,191.62,191.58,2.6133]
[1735021954692,8.40218714,191.64,191.57,1.5418]
[1735021954895,8.40218714,191.64,191.59,2.6132]
[1735021956695,11.01468714,191.64,191.59,2.6132]
[1735021960295,8.40218714,191.64,191.58,8.40218714]
[1735021960491,11.01458714,191.66,191.61,2.6128]
[1735021960991,8.40218714,191.66,191.58,8.40218714]
[1735021962498,2.6124,191.65,191.6,2.6131]
[1735021965095,8.40218714,191.64,191.6,2.6131]
[1735021965332,8.40218714,191.62,191.5,1.6336]
[1735021965493,8.40218714,191.58,191.51,8.40218714]
[1735021965693,8.40218714,191.58,191.5,1.6336]
[1735021965888,8.40218714,191.58,191.5,59.65228731]
[1735021966397,11.01558714,191.58,191.53,2.614]
[1735021967398,11.01558714,191.58,191.5,59.65228731]
[1735021967399,11.01588714,191.56,191.51,2.6142]
[1735021967595,8.40218714,191.54,191.31,91.99230534]
[1735021967795,8.40218714,191.54,191.45,8.40218714]
[1735021968896,8.40218714,191.54,191.47,8.40218714]
[1735021969500,11.01608714,191.54,191.48,2.6146]
[1735021972203,11.01608714,191.54,191.47,8.40218714]
[1735021972404,11.01608714,191.54,191.49,2.6146]
[1735021976906,8.40218714,191.54,191.49,2.6146]
[1735021977208,8.40218714,191.54,191.46,8.40218714]
[1735021977408,8.40218714,191.54,191.48,8.40218714]
[1735021978077,8.40218714,191.56,191.48,8.40218714]
[1735021978209,5.6936,191.57,191.52,2.6141]
[1735021978605,2.6136,191.57,191.52,2.6141]
[1735021979312,8.40218714,191.58,191.53,2.614]
[1735021981204,11.01558714,191.58,191.53,2.614]
[1735021982305,2.6139,191.54,191.5,3.08]
[1735021982513,4.6072,191.62,191.5,3.08]
[1735021982739,8.40218714,191.57,191.5,11.48218714]
[1735021983507,11.01578714,191.57,191.52,2.6142]
[1735021983712,4.6072,191.62,191.5,11.48218714]
[1735021983913,8.40218714,191.59,191.52,8.40218714]
[1735021984214,11.01548714,191.59,191.54,2.6139]
[1735021989126,8.40218714,191.57,191.5,8.40218714]
[1735021989323,8.40218714,191.53,191.45,3.08]
[1735021989520,8.40218714,191.53,191.45,11.48218714]
[1735021989917,11.01618714,191.53,191.48,2.6147]
[1735021990325,8.40218714,191.53,191.45,11.48218714]
[1735021990821,8.40218714,191.55,191.49,8.40218714]
[1735021991126,8.40218714,191.55,191.47,8.40218714]
[1735021991736,8.40218714,191.53,191.45,3.08]
[1735021992025,3.08,191.56,191.42,6.2341]
[1735021992026,8.40218714,191.51,191.42,6.2341]
[1735021992219,8.40218714,191.51,191.43,8.40218714]
[1735021992619,8.40218714,191.49,191.43,8.40218714]
[1735021993516,8.40218714,191.49,191.45,2.6151]
[1735021993926,8.40218714,191.49,191.42,3.1541]
[1735021994219,2.6147,191.48,191.42,3.1541]
[1735021995124,2.6147,191.48,191.41,8.40218714]
[1735021995326,8.40218714,191.47,191.39,3.08]
[1735021995524,8.40218714,191.45,191.37,8.40218714]
[1735021996024,8.40218714,191.41,191.36,1.5226]
[1735021997522,8.40218714,191.41,191.36,4.1389]
[1735021998327,8.40218714,191.41,191.36,2.6163]
[1735022001531,8.40218714,191.41,191.37,2.6162]
[1735022004335,2.6155,191.42,191.37,2.6162]
[1735022008233,11.01768714,191.42,191.37,2.6162]
[1735022008532,2.6155,191.42,191.37,2.6162]
[1735022012234,8.40218714,191.41,191.37,2.6162]
[1735022016838,8.40218714,191.39,191.35,2.6164]
[1735022017037,8.40218714,191.37,191.31,3.1672]
[1735022018536,8.40218714,191.37,191.33,2.6166]
[1735022019041,8.40218714,191.37,191.31,3.1672]
[1735022019042,8.40218714,191.39,191.32,8.40218714]
[1735022019534,8.40218714,191.39,191.35,2.6165]
[1735022029043,8.40218714,191.39,191.31,11.56938714]
[1735022029044,8.40218714,191.37,191.31,1.6279]
[1735022029242,8.40218714,191.35,191.29,3.08]
[1735022029439,8.40218714,191.33,191.28,72.12382242]
[1735022029746,8.40218714,191.33,191.29,2.6173]
[1735022030343,11.01898714,191.33,191.28,1.5477]
[1735022030663,8.40218714,191.31,191.26,72.13709872]
[1735022030842,8.40218714,191.31,191.26,59.57966361]
[1735022031541,8.40218714,191.31,191.28,2.6174]
[1735022032351,8.40218714,191.31,191.25,1.5248]
[1735022032646,8.40218714,191.29,191.23,62.68628731]
[1735022032846,8.40218714,191.29,191.23,4.6676]
[1735022033241,8.40218714,191.29,191.25,2.6177]
[1735022036351,8.40218714,191.29,191.23,1.5876]
[1735022036550,8.40218714,191.31,191.26,2.6177]
[1735022037550,8.40218714,191.31,191.25,2.6178]
[1735022037808,8.40218714,191.31,191.24,8.40218714]
[1735022038252,8.40218714,191.31,191.26,2.6177]
[1735022038550,8.40218714,191.31,191.24,8.40218714]
[1735022039556,8.40218714,191.31,191.28,2.6174]
[1735022040669,8.40218714,191.29,191.25,2.6178]
[1735022041168,8.40218714,191.29,191.23,4.2056]
[1735022041352,8.40218714,191.27,191.23,2.618]
[1735022041560,8.40218714,191.27,191.22,3.08]
[1735022042251,8.40218714,191.27,191.2,0.18538]
[1735022042456,8.40218714,191.27,191.23,2.618]
[1735022044262,8.40218714,191.27,191.21,8.40218714]
[1735022044459,8.40218714,191.29,191.25,2.6178]
[1735022046654,8.40218714,191.27,191.24,2.618]
[1735022053858,29.00934365,191.41,191.26,8.40218714]
[1735022054054,5.4141833,191.4,191.28,8.40218714]
[1735022054264,8.40218714,191.35,191.28,8.40218714]
[1735022054464,8.40218714,191.33,191.28,2.6173]
[1735022056460,8.40218714,191.31,191.28,2.6173]
[1735022057759,11.01898714,191.33,191.28,2.6173]
[1735022057971,8.40218714,191.34,191.26,8.40218714]
[1735022058671,2.6163,191.37,191.32,2.6169]
[1735022058963,8.40218714,191.37,191.3,3.08]
[1735022059166,8.40218714,191.37,191.3,11.48218714]
[1735022060266,8.40218714,191.37,191.3,3.08]
[1735022060769,8.40218714,191.37,191.34,2.6166]
[1735022062869,2.6161,191.39,191.34,2.6166]
[1735022063085,8.40218714,191.4,191.33,8.40218714]
[1735022063665,8.40218714,191.4,191.37,2.6162]
[1735022063963,8.40218714,191.4,191.33,8.40218714]
[1735022065470,8.40218714,191.4,191.35,2.6164]